[Event "Titled Tuesday Blitz January 31 Late 2023"]
[White "Lizak, Peter"]
[Black "Grigoriants, Sergey"]
[WhiteFideId "731595"]
[BlackFideId "4130804"]
[WhiteElo "2411"]
[BlackElo "2562"]
[Result "0-1"]
[Round "02"]
[TimeControl "180+2"]
[Date "2023.01.31"]
[WhiteClock "0:00:01"]
[BlackClock "0:00:09"]

1. d4 {[%clk 0:03:00]}  Nf6 {[%clk 0:02:56]} 2. Nc3 {[%clk 0:03:01]}  d5 {[%clk 0:02:56]} 3. Bf4 {[%clk 0:03:02]}  e6 {[%clk 0:02:56]} 4. Nb5 {[%clk 0:03:01]}  Bb4+ {[%clk 0:02:54]} 5. c3 {[%clk 0:03:01]}  Ba5 {[%clk 0:02:50]} 6. a4 {[%clk 0:03:01]}  a6 {[%clk 0:02:44]} 7. b4 {[%clk 0:02:56]}  Bxb4 {[%clk 0:02:43]} 8. cxb4 {[%clk 0:02:55]}  axb5 {[%clk 0:02:43]} 9. axb5 {[%clk 0:02:56]}  Rxa1 {[%clk 0:02:42]} 10. Qxa1 {[%clk 0:02:56]}  O-O {[%clk 0:02:35]} 11. e3 {[%clk 0:02:42]}  Nbd7 {[%clk 0:02:35]} 12. Be2 {[%clk 0:02:36]}  Nb6 {[%clk 0:02:32]} 13. Qc3 {[%clk 0:02:32]}  Ne8 {[%clk 0:02:22]} 14. Nf3 {[%clk 0:02:26]}  Nd6 {[%clk 0:02:21]} 15. O-O {[%clk 0:02:19]}  Bd7 {[%clk 0:02:18]} 16. Rc1 {[%clk 0:02:07]}  Ndc4 {[%clk 0:02:09]} 17. h4 {[%clk 0:01:21]}  Bxb5 {[%clk 0:02:05]} 18. Bd3 {[%clk 0:01:20]}  c6 {[%clk 0:01:46]} 19. h5 {[%clk 0:01:18]}  h6 {[%clk 0:01:28]} 20. Bb1 {[%clk 0:01:07]}  Qa8 {[%clk 0:01:14]} 21. Ne5 {[%clk 0:00:53]}  Qa3 {[%clk 0:00:59]} 22. Qc2 {[%clk 0:00:47]}  f5 {[%clk 0:00:59]} 23. Ng6 {[%clk 0:00:34]}  Ra8 {[%clk 0:00:23]} 24. Re1 {[%clk 0:00:15]}  Qxb4 {[%clk 0:00:21]} 25. Qd1 {[%clk 0:00:15]}  Ra1 {[%clk 0:00:18]} 26. g4 {[%clk 0:00:13]}  Qd2 {[%clk 0:00:14]} 27. gxf5 {[%clk 0:00:10]}  Qxd1 {[%clk 0:00:14]} 28. Rxd1 {[%clk 0:00:11]}  Na3 {[%clk 0:00:14]} 29. fxe6 {[%clk 0:00:03]}  Rxb1 {[%clk 0:00:11]} 30. Rxb1 {[%clk 0:00:03]}  Nxb1 {[%clk 0:00:12]} 31. Bd6 {[%clk 0:00:02]}  Nc8 {[%clk 0:00:10]} 32. Bb4 {[%clk 0:00:01]}  b6 {[%clk 0:00:09]} 0-1


[Site "https://www.chess.com"]

[Event "Titled Tuesday Blitz January 31 Late 2023"]
[White "Ibarra Jerez, Jose Carlos"]
[Black "Szabo, Marcell"]
[WhiteFideId "2226332"]
[BlackFideId "2072033"]
[WhiteElo "2563"]
[BlackElo "1895"]
[Result "1-0"]
[Round "02"]
[TimeControl "180+2"]
[Date "2023.01.31"]
[WhiteClock "0:01:16"]
[BlackClock "0:01:32"]

1. e4 {[%clk 0:03:00]}  c6 {[%clk 0:03:00]} 2. Nf3 {[%clk 0:03:01]}  d5 {[%clk 0:03:00]} 3. d3 {[%clk 0:03:01]}  dxe4 {[%clk 0:02:59]} 4. dxe4 {[%clk 0:03:02]}  Qxd1+ {[%clk 0:03:00]} 5. Kxd1 {[%clk 0:03:03]}  Nf6 {[%clk 0:03:01]} 6. Nbd2 {[%clk 0:03:03]}  Bg4 {[%clk 0:03:01]} 7. Be2 {[%clk 0:03:02]}  Nbd7 {[%clk 0:03:00]} 8. Ne1 {[%clk 0:03:03]}  Bxe2+ {[%clk 0:03:00]} 9. Kxe2 {[%clk 0:03:03]}  e5 {[%clk 0:03:00]} 10. f3 {[%clk 0:03:03]}  O-O-O {[%clk 0:03:01]} 11. a4 {[%clk 0:03:04]}  Ne8 {[%clk 0:03:01]} 12. Nc4 {[%clk 0:03:04]}  Nc7 {[%clk 0:03:00]} 13. Nd3 {[%clk 0:03:05]}  f6 {[%clk 0:03:01]} 14. Be3 {[%clk 0:03:05]}  a6 {[%clk 0:03:01]} 15. b4 {[%clk 0:03:03]}  Ne6 {[%clk 0:03:01]} 16. c3 {[%clk 0:03:03]}  g5 {[%clk 0:02:57]} 17. Rhb1 {[%clk 0:03:03]}  Nf4+ {[%clk 0:02:56]} 18. Bxf4 {[%clk 0:02:57]}  gxf4 {[%clk 0:02:57]} 19. b5 {[%clk 0:02:57]}  Nc5 {[%clk 0:02:55]} 20. Nxc5 {[%clk 0:02:52]}  Bxc5 {[%clk 0:02:55]} 21. bxc6 {[%clk 0:02:53]}  bxc6 {[%clk 0:02:56]} 22. Na5 {[%clk 0:02:51]}  Be3 {[%clk 0:02:53]} 23. Ra2 {[%clk 0:02:48]}  Rd6 {[%clk 0:02:53]} 24. Nc4 {[%clk 0:02:37]}  Rd7 {[%clk 0:02:46]} 25. Rab2 {[%clk 0:02:37]}  Ba7 {[%clk 0:02:43]} 26. Nb6+ {[%clk 0:02:23]}  Bxb6 {[%clk 0:02:37]} 27. Rxb6 {[%clk 0:02:24]}  Rhd8 {[%clk 0:02:17]} 28. Rxc6+ {[%clk 0:02:14]}  Rc7 {[%clk 0:02:18]} 29. Rbb6 {[%clk 0:02:10]}  Rg8 {[%clk 0:02:07]} 30. Kf1 {[%clk 0:01:58]}  a5 {[%clk 0:02:01]} 31. Rxc7+ {[%clk 0:01:44]}  Kxc7 {[%clk 0:02:02]} 32. Rxf6 {[%clk 0:01:45]}  Rb8 {[%clk 0:01:59]} 33. Re6 {[%clk 0:01:36]}  Rb1+ {[%clk 0:01:58]} 34. Ke2 {[%clk 0:01:36]}  Rb2+ {[%clk 0:01:58]} 35. Kd3 {[%clk 0:01:37]}  Rxg2 {[%clk 0:01:58]} 36. Rxe5 {[%clk 0:01:36]}  Rxh2 {[%clk 0:01:57]} 37. Rxa5 {[%clk 0:01:35]}  h5 {[%clk 0:01:58]} 38. Rf5 {[%clk 0:01:35]}  h4 {[%clk 0:01:58]} 39. Rxf4 {[%clk 0:01:35]}  h3 {[%clk 0:01:59]} 40. Rh4 {[%clk 0:01:35]}  Rh1 {[%clk 0:02:00]} 41. Rh6 {[%clk 0:01:32]}  h2 {[%clk 0:02:00]} 42. Kc4 {[%clk 0:01:33]}  Kb7 {[%clk 0:02:00]} 43. a5 {[%clk 0:01:31]}  Kc7 {[%clk 0:01:58]} 44. a6 {[%clk 0:01:31]}  Kb8 {[%clk 0:01:58]} 45. Rh7 {[%clk 0:01:31]}  Ka8 {[%clk 0:01:59]} 46. Kc5 {[%clk 0:01:31]}  Kb8 {[%clk 0:01:59]} 47. c4 {[%clk 0:01:29]}  Ka8 {[%clk 0:01:59]} 48. Kc6 {[%clk 0:01:30]}  Kb8 {[%clk 0:01:58]} 49. c5 {[%clk 0:01:29]}  Ka8 {[%clk 0:01:59]} 50. f4 {[%clk 0:01:26]}  Kb8 {[%clk 0:01:53]} 51. a7+ {[%clk 0:01:20]}  Ka8 {[%clk 0:01:53]} 52. e5 {[%clk 0:01:20]}  Rf1 {[%clk 0:01:45]} 53. Rxh2 {[%clk 0:01:21]}  Rxf4 {[%clk 0:01:42]} 54. e6 {[%clk 0:01:20]}  Rf8 {[%clk 0:01:36]} 55. e7 {[%clk 0:01:16]}  Re8 {[%clk 0:01:31]} 56. Kd7 {[%clk 0:01:16]}  Rc8 {[%clk 0:01:32]} 57. Kxc8 {[%clk 0:01:16]}  Kxa7 {[%clk 0:01:32]} 1-0


[Site "https://www.chess.com"]

[Event "Titled Tuesday Blitz January 31 Late 2023"]
[White "Van Foreest, Lucas"]
[Black "Martynov, Pavel"]
[WhiteFideId "1039792"]
[BlackFideId "4101260"]
[WhiteElo "2556"]
[BlackElo "2414"]
[Result "1-0"]
[Round "02"]
[TimeControl "180+2"]
[Date "2023.01.31"]
[WhiteClock "0:00:07"]
[BlackClock "0:00:05"]

1. e4 {[%clk 0:02:59]}  c5 {[%clk 0:02:57]} 2. Qg4 {[%clk 0:02:58]}  Nc6 {[%clk 0:02:34]} 3. Qh4 {[%clk 0:02:57]}  e6 {[%clk 0:02:22]} 4. Qxd8+ {[%clk 0:02:58]}  Nxd8 {[%clk 0:02:22]} 5. Nf3 {[%clk 0:02:56]}  Nc6 {[%clk 0:02:19]} 6. c3 {[%clk 0:02:53]}  Nf6 {[%clk 0:02:14]} 7. Bd3 {[%clk 0:02:48]}  Be7 {[%clk 0:02:11]} 8. O-O {[%clk 0:02:46]}  O-O {[%clk 0:02:11]} 9. Re1 {[%clk 0:02:46]}  d5 {[%clk 0:02:10]} 10. exd5 {[%clk 0:02:46]}  exd5 {[%clk 0:02:04]} 11. Bb5 {[%clk 0:02:39]}  Bd6 {[%clk 0:02:03]} 12. d3 {[%clk 0:02:33]}  Bd7 {[%clk 0:02:01]} 13. Bg5 {[%clk 0:02:33]}  Rfe8 {[%clk 0:01:59]} 14. Nbd2 {[%clk 0:02:28]}  a6 {[%clk 0:01:59]} 15. Ba4 {[%clk 0:02:00]}  b5 {[%clk 0:01:59]} 16. Bc2 {[%clk 0:02:00]}  Bf5 {[%clk 0:01:51]} 17. Bxf6 {[%clk 0:01:57]}  gxf6 {[%clk 0:01:51]} 18. Nf1 {[%clk 0:01:50]}  d4 {[%clk 0:01:30]} 19. cxd4 {[%clk 0:01:24]}  Nxd4 {[%clk 0:01:18]} 20. Nxd4 {[%clk 0:01:22]}  cxd4 {[%clk 0:01:19]} 21. Nd2 {[%clk 0:01:04]}  Rxe1+ {[%clk 0:01:09]} 22. Rxe1 {[%clk 0:01:01]}  Bb4 {[%clk 0:01:09]} 23. Re2 {[%clk 0:00:40]}  Rc8 {[%clk 0:01:02]} 24. Nb3 {[%clk 0:00:40]}  Bg4 {[%clk 0:00:26]} 25. f3 {[%clk 0:00:38]}  Be6 {[%clk 0:00:27]} 26. Kf2 {[%clk 0:00:32]}  a5 {[%clk 0:00:19]} 27. a3 {[%clk 0:00:13]}  a4 {[%clk 0:00:19]} 28. Na1 {[%clk 0:00:06]}  Bd6 {[%clk 0:00:15]} 29. g3 {[%clk 0:00:05]}  Kg7 {[%clk 0:00:12]} 30. Bb1 {[%clk 0:00:05]}  Rc1 {[%clk 0:00:11]} 31. Re1 {[%clk 0:00:05]}  Rxe1 {[%clk 0:00:05]} 32. Kxe1 {[%clk 0:00:06]}  Bd5 {[%clk 0:00:05]} 33. Kf2 {[%clk 0:00:06]}  Bb3 {[%clk 0:00:04]} 34. Bc2 {[%clk 0:00:05]}  Ba2 {[%clk 0:00:02]} 35. Bd1 {[%clk 0:00:05]}  b4 {[%clk 0:00:02]} 36. axb4 {[%clk 0:00:05]}  Bxb4 {[%clk 0:00:03]} 37. Bxa4 {[%clk 0:00:05]}  f5 {[%clk 0:00:03]} 38. Nc2 {[%clk 0:00:05]}  Bc5 {[%clk 0:00:04]} 39. b4 {[%clk 0:00:05]}  Bb6 {[%clk 0:00:04]} 40. Ke2 {[%clk 0:00:05]}  Kf6 {[%clk 0:00:05]} 41. f4 {[%clk 0:00:06]}  Ke6 {[%clk 0:00:05]} 42. Kd2 {[%clk 0:00:06]}  Kd5 {[%clk 0:00:05]} 43. Na1 {[%clk 0:00:07]}  f6 {[%clk 0:00:04]} 44. Bb3+ {[%clk 0:00:07]}  Bxb3 {[%clk 0:00:04]} 45. Nxb3 {[%clk 0:00:08]}  Bc7 {[%clk 0:00:05]} 46. Kc2 {[%clk 0:00:08]}  Bd6 {[%clk 0:00:05]} 47. b5 {[%clk 0:00:08]}  Bc7 {[%clk 0:00:05]} 48. Nd2 {[%clk 0:00:08]}  Kc5 {[%clk 0:00:04]} 49. Nf3 {[%clk 0:00:08]}  Bb6 {[%clk 0:00:04]} 50. Nh4 {[%clk 0:00:08]}  Kxb5 {[%clk 0:00:04]} 51. Nxf5 {[%clk 0:00:08]}  Kc6 {[%clk 0:00:05]} 52. Kd2 {[%clk 0:00:08]}  Kd5 {[%clk 0:00:05]} 53. Ke2 {[%clk 0:00:07]}  Ke6 {[%clk 0:00:05]} 54. g4 {[%clk 0:00:08]}  Kf7 {[%clk 0:00:04]} 55. Kf3 {[%clk 0:00:07]}  Ke6 {[%clk 0:00:03]} 56. Ke4 {[%clk 0:00:08]}  Bc7 {[%clk 0:00:03]} 57. Nxd4+ {[%clk 0:00:08]}  Kf7 {[%clk 0:00:04]} 58. Nf5 {[%clk 0:00:08]}  Kg6 {[%clk 0:00:04]} 59. Ng3 {[%clk 0:00:07]}  h5 {[%clk 0:00:05]} 60. Nxh5 {[%clk 0:00:07]} 1-0


[Site "https://www.chess.com"]

[Event "Titled Tuesday Blitz January 31 Late 2023"]
[White "Musovic, Armin"]
[Black "Kowalski, Igor"]
[WhiteFideId "939935"]
[BlackFideId "1172468"]
[WhiteElo "2261"]
[BlackElo "2380"]
[Result "1/2-1/2"]
[Round "02"]
[TimeControl "180+2"]
[Date "2023.01.31"]
[WhiteClock "0:00:31"]
[BlackClock "0:00:05"]

1. e4 {[%clk 0:02:56]}  g6 {[%clk 0:02:52]} 2. Nc3 {[%clk 0:02:55]}  Bg7 {[%clk 0:02:52]} 3. a3 {[%clk 0:02:55]}  c5 {[%clk 0:02:52]} 4. Bc4 {[%clk 0:02:56]}  e6 {[%clk 0:02:52]} 5. d3 {[%clk 0:02:56]}  Ne7 {[%clk 0:02:53]} 6. Bg5 {[%clk 0:02:57]}  h6 {[%clk 0:02:53]} 7. Bh4 {[%clk 0:02:57]}  g5 {[%clk 0:02:51]} 8. Bg3 {[%clk 0:02:57]}  d5 {[%clk 0:02:52]} 9. Ba2 {[%clk 0:02:57]}  Qb6 {[%clk 0:02:52]} 10. Qc1 {[%clk 0:02:54]}  d4 {[%clk 0:02:47]} 11. Nb1 {[%clk 0:02:50]}  f5 {[%clk 0:02:44]} 12. exf5 {[%clk 0:02:48]}  exf5 {[%clk 0:02:44]} 13. Bxb8 {[%clk 0:02:40]}  Rxb8 {[%clk 0:02:43]} 14. Nd2 {[%clk 0:02:40]}  Be6 {[%clk 0:02:42]} 15. Qb1 {[%clk 0:02:37]}  Nd5 {[%clk 0:02:37]} 16. Ne2 {[%clk 0:02:33]}  O-O {[%clk 0:02:32]} 17. O-O {[%clk 0:02:17]}  f4 {[%clk 0:02:33]} 18. Ne4 {[%clk 0:02:16]}  f3 {[%clk 0:02:32]} 19. gxf3 {[%clk 0:02:16]}  Rxf3 {[%clk 0:02:28]} 20. b4 {[%clk 0:02:09]}  cxb4 {[%clk 0:02:18]} 21. axb4 {[%clk 0:02:07]}  Rbf8 {[%clk 0:02:12]} 22. Nc5 {[%clk 0:02:01]}  Kh8 {[%clk 0:02:06]} 23. Bc4 {[%clk 0:01:49]}  Be5 {[%clk 0:01:04]} 24. Ng3 {[%clk 0:01:37]}  Bxg3 {[%clk 0:00:50]} 25. hxg3 {[%clk 0:01:35]}  Nc3 {[%clk 0:00:43]} 26. Qe1 {[%clk 0:01:06]}  Bxc4 {[%clk 0:00:43]} 27. dxc4 {[%clk 0:01:07]}  Qd6 {[%clk 0:00:30]} 28. Ne4 {[%clk 0:00:56]}  Qxb4 {[%clk 0:00:23]} 29. Nxc3 {[%clk 0:00:55]}  Qxc3 {[%clk 0:00:23]} 30. Qe5+ {[%clk 0:00:55]}  Kh7 {[%clk 0:00:22]} 31. Rxa7 {[%clk 0:00:55]}  R3f7 {[%clk 0:00:16]} 32. Rxb7 {[%clk 0:00:52]}  Qxc4 {[%clk 0:00:17]} 33. Qe4+ {[%clk 0:00:48]}  Kg7 {[%clk 0:00:16]} 34. Rb6 {[%clk 0:00:46]}  Rf6 {[%clk 0:00:14]} 35. Rb7+ {[%clk 0:00:43]}  R8f7 {[%clk 0:00:15]} 36. Rxf7+ {[%clk 0:00:44]}  Rxf7 {[%clk 0:00:15]} 37. Rb1 {[%clk 0:00:40]}  Qc5 {[%clk 0:00:10]} 38. Rb7 {[%clk 0:00:36]}  Rxb7 {[%clk 0:00:09]} 39. Qxb7+ {[%clk 0:00:37]}  Kf6 {[%clk 0:00:09]} 40. Qa6+ {[%clk 0:00:34]}  Kg7 {[%clk 0:00:07]} 41. Qb7+ {[%clk 0:00:31]}  Kf6 {[%clk 0:00:07]} 42. Qa6+ {[%clk 0:00:31]}  Kg7 {[%clk 0:00:05]} 43. Qb7+ {[%clk 0:00:31]} 1/2-1/2


[Site "https://www.chess.com"]

[Event "Titled Tuesday Blitz January 31 Late 2023"]
[White "Iskusnyh, Sergei"]
[Black "Pakleza, Zbigniew"]
[WhiteFideId "4120027"]
[BlackFideId "1119290"]
[WhiteElo "2440"]
[BlackElo "2494"]
[Result "1-0"]
[Round "02"]
[TimeControl "180+2"]
[Date "2023.01.31"]
[WhiteClock "0:00:03"]
[BlackClock "0:00:04"]

1. d4 {[%clk 0:03:00]}  d6 {[%clk 0:03:00]} 2. Nf3 {[%clk 0:02:59]}  Bg4 {[%clk 0:03:00]} 3. c4 {[%clk 0:02:57]}  c6 {[%clk 0:03:00]} 4. Nc3 {[%clk 0:02:56]}  Nf6 {[%clk 0:03:00]} 5. g3 {[%clk 0:02:55]}  Bxf3 {[%clk 0:02:54]} 6. exf3 {[%clk 0:02:55]}  e6 {[%clk 0:02:55]} 7. d5 {[%clk 0:02:54]}  exd5 {[%clk 0:02:52]} 8. cxd5 {[%clk 0:02:54]}  c5 {[%clk 0:02:50]} 9. Bh3 {[%clk 0:02:19]}  Be7 {[%clk 0:02:48]} 10. Qb3 {[%clk 0:02:05]}  Qc7 {[%clk 0:02:41]} 11. O-O {[%clk 0:01:57]}  O-O {[%clk 0:02:40]} 12. Re1 {[%clk 0:01:57]}  Re8 {[%clk 0:02:31]} 13. Bf4 {[%clk 0:01:49]}  Na6 {[%clk 0:02:06]} 14. Re2 {[%clk 0:00:46]}  Bf8 {[%clk 0:01:59]} 15. Rae1 {[%clk 0:00:45]}  Rxe2 {[%clk 0:01:59]} 16. Rxe2 {[%clk 0:00:46]}  h6 {[%clk 0:01:47]} 17. Qa4 {[%clk 0:00:31]}  Nb4 {[%clk 0:01:34]} 18. Qd1 {[%clk 0:00:21]}  c4 {[%clk 0:00:50]} 19. Rd2 {[%clk 0:00:07]}  Nd3 {[%clk 0:00:38]} 20. Be3 {[%clk 0:00:07]}  Qa5 {[%clk 0:00:39]} 21. Bf1 {[%clk 0:00:06]}  Nxb2 {[%clk 0:00:13]} 22. Rxb2 {[%clk 0:00:05]}  Qxc3 {[%clk 0:00:13]} 23. Rxb7 {[%clk 0:00:06]}  a5 {[%clk 0:00:08]} 24. Rc7 {[%clk 0:00:06]}  Qa3 {[%clk 0:00:07]} 25. Bxc4 {[%clk 0:00:04]}  Re8 {[%clk 0:00:06]} 26. Bb3 {[%clk 0:00:04]}  a4 {[%clk 0:00:05]} 27. Bxa4 {[%clk 0:00:02]}  Rb8 {[%clk 0:00:06]} 28. Bb3 {[%clk 0:00:01]}  Qb4 {[%clk 0:00:06]} 29. Rc6 {[%clk 0:00:02]}  Qb7 {[%clk 0:00:06]} 30. Kg2 {[%clk 0:00:02]}  Nd7 {[%clk 0:00:07]} 31. h4 {[%clk 0:00:02]}  Ne5 {[%clk 0:00:07]} 32. Bd4 {[%clk 0:00:02]}  Nxc6 {[%clk 0:00:07]} 33. dxc6 {[%clk 0:00:02]}  Qxc6 {[%clk 0:00:08]} 34. Qd3 {[%clk 0:00:03]}  Rc8 {[%clk 0:00:07]} 35. Qf5 {[%clk 0:00:02]}  Re8 {[%clk 0:00:03]} 36. Qxf7+ {[%clk 0:00:01]}  Kh7 {[%clk 0:00:03]} 37. Qg8+ {[%clk 0:00:02]}  Kg6 {[%clk 0:00:04]} 38. Bf7+ {[%clk 0:00:02]}  Kf5 {[%clk 0:00:04]} 39. Qh7+ {[%clk 0:00:03]}  g6 {[%clk 0:00:04]} 40. Qxg6# {[%clk 0:00:03]} 1-0


[Site "https://www.chess.com"]

[Event "Titled Tuesday Blitz January 31 Late 2023"]
[White "Boruchovsky, Avital"]
[Black "Pasti, Aron"]
[WhiteFideId "2800055"]
[BlackFideId "785857"]
[WhiteElo "2539"]
[BlackElo "2361"]
[Result "1-0"]
[Round "02"]
[TimeControl "180+2"]
[Date "2023.01.31"]
[WhiteClock "0:01:37"]
[BlackClock "0:00:22"]

1. e4 {[%clk 0:03:00]}  c5 {[%clk 0:02:59]} 2. c3 {[%clk 0:02:56]}  d5 {[%clk 0:02:58]} 3. exd5 {[%clk 0:02:56]}  Qxd5 {[%clk 0:02:59]} 4. d4 {[%clk 0:02:57]}  e6 {[%clk 0:02:59]} 5. Nf3 {[%clk 0:02:57]}  Nf6 {[%clk 0:02:59]} 6. Na3 {[%clk 0:02:57]}  Nc6 {[%clk 0:02:52]} 7. Nb5 {[%clk 0:02:56]}  Qd8 {[%clk 0:02:49]} 8. dxc5 {[%clk 0:02:51]}  Bxc5 {[%clk 0:02:43]} 9. Qxd8+ {[%clk 0:02:49]}  Kxd8 {[%clk 0:02:44]} 10. Bf4 {[%clk 0:02:45]}  Ne4 {[%clk 0:02:43]} 11. Nbd4 {[%clk 0:02:39]}  f6 {[%clk 0:02:37]} 12. Bd3 {[%clk 0:02:33]}  Nxf2 {[%clk 0:02:28]} 13. Kxf2 {[%clk 0:02:32]}  e5 {[%clk 0:02:29]} 14. Be3 {[%clk 0:02:25]}  exd4 {[%clk 0:02:28]} 15. cxd4 {[%clk 0:02:26]}  Bb6 {[%clk 0:02:25]} 16. Rad1 {[%clk 0:02:24]}  Bg4 {[%clk 0:02:24]} 17. d5 {[%clk 0:02:16]}  Bxe3+ {[%clk 0:02:22]} 18. Kxe3 {[%clk 0:02:17]}  Re8+ {[%clk 0:02:02]} 19. Kf4 {[%clk 0:02:17]}  Ne5 {[%clk 0:01:58]} 20. Bxh7 {[%clk 0:02:11]}  Bxf3 {[%clk 0:01:53]} 21. gxf3 {[%clk 0:02:12]}  g6 {[%clk 0:01:49]} 22. Rhg1 {[%clk 0:02:07]}  g5+ {[%clk 0:01:30]} 23. Kf5 {[%clk 0:02:07]}  Ke7 {[%clk 0:01:28]} 24. d6+ {[%clk 0:01:51]}  Kf7 {[%clk 0:01:23]} 25. f4 {[%clk 0:01:51]}  gxf4 {[%clk 0:01:10]} 26. d7 {[%clk 0:01:49]}  Red8 {[%clk 0:00:37]} 27. Bg8+ {[%clk 0:01:43]}  Ke7 {[%clk 0:00:23]} 28. Be6 {[%clk 0:01:41]}  f3 {[%clk 0:00:22]} 29. Rg7+ {[%clk 0:01:39]}  Kf8 {[%clk 0:00:23]} 30. Kxf6 {[%clk 0:01:38]}  Nxd7+ {[%clk 0:00:22]} 31. Rdxd7 {[%clk 0:01:37]} 1-0


[Site "https://www.chess.com"]

[Event "Titled Tuesday Blitz January 31 Late 2023"]
[White "Bernadskiy, Vitaliy"]
[Black "Yurovskykh, Oleksandr"]
[WhiteFideId "14100371"]
[BlackFideId "14134020"]
[WhiteElo "2592"]
[BlackElo "2328"]
[Result "1/2-1/2"]
[Round "02"]
[TimeControl "180+2"]
[Date "2023.01.31"]
[WhiteClock "0:00:20"]
[BlackClock "0:00:58"]

1. d4 {[%clk 0:03:00]}  d5 {[%clk 0:02:54]} 2. Nf3 {[%clk 0:03:01]}  Nf6 {[%clk 0:02:54]} 3. c3 {[%clk 0:02:59]}  c5 {[%clk 0:02:51]} 4. dxc5 {[%clk 0:02:57]}  e6 {[%clk 0:02:51]} 5. Be3 {[%clk 0:02:31]}  a5 {[%clk 0:02:50]} 6. Na3 {[%clk 0:02:26]}  Na6 {[%clk 0:02:49]} 7. Nb5 {[%clk 0:02:25]}  Bxc5 {[%clk 0:02:35]} 8. Bxc5 {[%clk 0:02:24]}  Nxc5 {[%clk 0:02:36]} 9. e3 {[%clk 0:02:24]}  O-O {[%clk 0:02:35]} 10. Be2 {[%clk 0:02:24]}  b6 {[%clk 0:02:31]} 11. O-O {[%clk 0:02:24]}  Bb7 {[%clk 0:02:32]} 12. a4 {[%clk 0:02:22]}  Qe7 {[%clk 0:02:29]} 13. Nd2 {[%clk 0:02:08]}  Rfd8 {[%clk 0:02:24]} 14. Nb3 {[%clk 0:02:01]}  Rac8 {[%clk 0:02:18]} 15. Re1 {[%clk 0:01:51]}  Nfe4 {[%clk 0:02:16]} 16. Bf3 {[%clk 0:01:45]}  Nxb3 {[%clk 0:02:16]} 17. Qxb3 {[%clk 0:01:46]}  Nc5 {[%clk 0:02:16]} 18. Qc2 {[%clk 0:01:41]}  Bc6 {[%clk 0:02:14]} 19. Be2 {[%clk 0:01:35]}  g6 {[%clk 0:01:58]} 20. Qd1 {[%clk 0:01:34]}  Qb7 {[%clk 0:01:53]} 21. Bf1 {[%clk 0:01:26]}  Be8 {[%clk 0:01:52]} 22. h4 {[%clk 0:01:24]}  h5 {[%clk 0:01:52]} 23. g3 {[%clk 0:01:23]}  Bc6 {[%clk 0:01:51]} 24. Rb1 {[%clk 0:01:13]}  Qd7 {[%clk 0:01:49]} 25. b3 {[%clk 0:01:12]}  Bb7 {[%clk 0:01:41]} 26. Qd4 {[%clk 0:01:11]}  Bc6 {[%clk 0:01:34]} 27. Red1 {[%clk 0:01:05]}  Bxb5 {[%clk 0:01:33]} 28. Bxb5 {[%clk 0:01:03]}  Qc7 {[%clk 0:01:32]} 29. Rdc1 {[%clk 0:00:40]}  Nb7 {[%clk 0:01:16]} 30. Bf1 {[%clk 0:00:38]}  Qc5 {[%clk 0:01:13]} 31. Ba6 {[%clk 0:00:34]}  Rc7 {[%clk 0:01:09]} 32. Bxb7 {[%clk 0:00:28]}  Rxb7 {[%clk 0:01:10]} 33. b4 {[%clk 0:00:28]}  Qxd4 {[%clk 0:00:59]} 34. cxd4 {[%clk 0:00:26]}  axb4 {[%clk 0:00:59]} 35. Rxb4 {[%clk 0:00:27]}  Ra8 {[%clk 0:00:59]} 36. Ra1 {[%clk 0:00:22]}  Rba7 {[%clk 0:00:59]} 37. Kf1 {[%clk 0:00:22]}  b5 {[%clk 0:00:57]} 38. Rxb5 {[%clk 0:00:22]}  Rxa4 {[%clk 0:00:57]} 39. Rxa4 {[%clk 0:00:22]}  Rxa4 {[%clk 0:00:58]} 40. Rb7 {[%clk 0:00:22]}  Ra2 {[%clk 0:00:58]} 41. Kg2 {[%clk 0:00:22]}  Kg7 {[%clk 0:00:59]} 42. Kf3 {[%clk 0:00:22]}  Kf6 {[%clk 0:00:59]} 43. Rc7 {[%clk 0:00:21]}  Rb2 {[%clk 0:01:00]} 44. Ra7 {[%clk 0:00:21]}  Rc2 {[%clk 0:01:00]} 45. Rb7 {[%clk 0:00:21]}  Ra2 {[%clk 0:01:00]} 46. Rc7 {[%clk 0:00:20]}  Rb2 {[%clk 0:01:00]} 47. Ra7 {[%clk 0:00:20]}  Rc2 {[%clk 0:00:58]} 48. Rb7 {[%clk 0:00:20]}  Ra2 {[%clk 0:00:58]} 1/2-1/2


[Site "https://www.chess.com"]

[Event "Titled Tuesday Blitz January 31 Late 2023"]
[White "Bacrot, Etienne"]
[Black "Shapiro, Viktor"]
[WhiteFideId "605506"]
[BlackFideId "4175700"]
[WhiteElo "2667"]
[BlackElo "2192"]
[Result "1-0"]
[Round "02"]
[TimeControl "180+2"]
[Date "2023.01.31"]
[WhiteClock "0:02:00"]
[BlackClock "0:01:02"]

1. e4 {[%clk 0:03:00]}  Nf6 {[%clk 0:03:00]} 2. e5 {[%clk 0:03:00]}  Nd5 {[%clk 0:03:00]} 3. Bc4 {[%clk 0:03:01]}  Nb6 {[%clk 0:03:00]} 4. Bb3 {[%clk 0:03:01]}  c5 {[%clk 0:03:00]} 5. d3 {[%clk 0:03:01]}  Nc6 {[%clk 0:03:00]} 6. Nf3 {[%clk 0:03:01]}  a5 {[%clk 0:03:00]} 7. a4 {[%clk 0:03:01]}  d5 {[%clk 0:03:00]} 8. e6 {[%clk 0:03:01]}  Bxe6 {[%clk 0:02:59]} 9. O-O {[%clk 0:03:02]}  f6 {[%clk 0:02:56]} 10. Re1 {[%clk 0:03:02]}  Bf7 {[%clk 0:02:57]} 11. Nc3 {[%clk 0:03:03]}  e6 {[%clk 0:02:55]} 12. Bf4 {[%clk 0:03:02]}  Be7 {[%clk 0:02:54]} 13. Nb5 {[%clk 0:03:02]}  Rc8 {[%clk 0:02:54]} 14. c4 {[%clk 0:03:01]}  d4 {[%clk 0:02:50]} 15. Re4 {[%clk 0:03:00]}  O-O {[%clk 0:02:48]} 16. Qe2 {[%clk 0:03:00]}  e5 {[%clk 0:02:47]} 17. Bg3 {[%clk 0:03:01]}  Bg6 {[%clk 0:02:35]} 18. Re1 {[%clk 0:03:00]}  Qd7 {[%clk 0:02:32]} 19. Nh4 {[%clk 0:02:58]}  Bf7 {[%clk 0:02:32]} 20. f4 {[%clk 0:02:55]}  Rce8 {[%clk 0:02:25]} 21. f5 {[%clk 0:02:55]}  g5 {[%clk 0:02:16]} 22. fxg6 {[%clk 0:02:54]}  hxg6 {[%clk 0:02:16]} 23. Rg4 {[%clk 0:02:52]}  Kh7 {[%clk 0:02:07]} 24. Rf1 {[%clk 0:02:31]}  f5 {[%clk 0:01:47]} 25. Re4 {[%clk 0:02:13]}  fxe4 {[%clk 0:01:41]} 26. Qxe4 {[%clk 0:02:14]}  Bg5 {[%clk 0:01:19]} 27. Bd1 {[%clk 0:02:12]}  Qe7 {[%clk 0:01:14]} 28. Bh5 {[%clk 0:02:03]}  Rg8 {[%clk 0:01:12]} 29. Nf5 {[%clk 0:01:59]}  gxf5 {[%clk 0:01:06]} 30. Rxf5 {[%clk 0:02:00]}  Bxh5 {[%clk 0:01:03]} 31. Rf7+ {[%clk 0:02:00]}  Kh6 {[%clk 0:01:02]} 32. Qh7# {[%clk 0:02:00]} 1-0


[Site "https://www.chess.com"]